[Event "Titled Tuesday Blitz February 07 Early 2023"]
[White "Beerdsen, Thomas"]
[Black "Bachmann, Axel"]
[WhiteFideId "1030108"]
[BlackFideId "3700488"]
[WhiteElo "2507"]
[BlackElo "2604"]
[Result "0-1"]
[Round "04"]
[TimeControl "180+2"]
[Date "2023.02.07"]
[WhiteClock "0:00:02"]
[BlackClock "0:00:09"]

1. e4 {[%clk 0:03:00]}  e5 {[%clk 0:02:55]} 2. Bc4 {[%clk 0:02:57]}  Nf6 {[%clk 0:02:54]} 3. d3 {[%clk 0:02:57]}  c6 {[%clk 0:02:49]} 4. Nf3 {[%clk 0:02:57]}  d6 {[%clk 0:02:47]} 5. Bb3 {[%clk 0:02:57]}  Be7 {[%clk 0:02:43]} 6. O-O {[%clk 0:02:57]}  Nbd7 {[%clk 0:02:43]} 7. c3 {[%clk 0:02:56]}  h6 {[%clk 0:02:37]} 8. Re1 {[%clk 0:02:52]}  Nf8 {[%clk 0:02:36]} 9. d4 {[%clk 0:02:52]}  Ng6 {[%clk 0:02:34]} 10. Nbd2 {[%clk 0:02:50]}  O-O {[%clk 0:02:33]} 11. Nc4 {[%clk 0:02:47]}  Qc7 {[%clk 0:02:02]} 12. a4 {[%clk 0:02:43]}  b6 {[%clk 0:02:00]} 13. h3 {[%clk 0:02:41]}  Re8 {[%clk 0:01:58]} 14. Qc2 {[%clk 0:02:24]}  Bf8 {[%clk 0:01:51]} 15. Bd2 {[%clk 0:02:08]}  Ba6 {[%clk 0:01:40]} 16. Rad1 {[%clk 0:02:07]}  Rad8 {[%clk 0:01:37]} 17. Bc1 {[%clk 0:01:57]}  Bc8 {[%clk 0:01:16]} 18. Ba2 {[%clk 0:01:26]}  a6 {[%clk 0:01:15]} 19. b4 {[%clk 0:01:26]}  b5 {[%clk 0:01:15]} 20. Na5 {[%clk 0:01:24]}  c5 {[%clk 0:01:06]} 21. d5 {[%clk 0:01:09]}  cxb4 {[%clk 0:01:04]} 22. Nc6 {[%clk 0:01:09]}  bxc3 {[%clk 0:00:59]} 23. axb5 {[%clk 0:01:03]}  axb5 {[%clk 0:00:58]} 24. Nxd8 {[%clk 0:00:47]}  Rxd8 {[%clk 0:00:59]} 25. Ba3 {[%clk 0:00:48]}  Nf4 {[%clk 0:00:22]} 26. Re3 {[%clk 0:00:48]}  g5 {[%clk 0:00:16]} 27. Nh2 {[%clk 0:00:42]}  g4 {[%clk 0:00:13]} 28. hxg4 {[%clk 0:00:41]}  Nxg4 {[%clk 0:00:14]} 29. Nxg4 {[%clk 0:00:42]}  Bxg4 {[%clk 0:00:15]} 30. Rg3 {[%clk 0:00:42]}  h5 {[%clk 0:00:15]} 31. f3 {[%clk 0:00:43]}  Qa7+ {[%clk 0:00:15]} 32. Kh2 {[%clk 0:00:36]}  Qxa3 {[%clk 0:00:13]} 33. fxg4 {[%clk 0:00:37]}  b4 {[%clk 0:00:13]} 34. gxh5+ {[%clk 0:00:37]}  Kh8 {[%clk 0:00:14]} 35. Bb3 {[%clk 0:00:27]}  Bh6 {[%clk 0:00:12]} 36. Rf3 {[%clk 0:00:24]}  Qa6 {[%clk 0:00:08]} 37. g3 {[%clk 0:00:16]}  Qe2+ {[%clk 0:00:08]} 38. Qxe2 {[%clk 0:00:16]}  Nxe2 {[%clk 0:00:09]} 39. Rxf7 {[%clk 0:00:17]}  Nd4 {[%clk 0:00:09]} 40. Ba4 {[%clk 0:00:05]}  b3 {[%clk 0:00:08]} 41. Bxb3 {[%clk 0:00:04]}  Nxb3 {[%clk 0:00:09]} 42. Rc7 {[%clk 0:00:05]}  Nc5 {[%clk 0:00:09]} 43. Rf1 {[%clk 0:00:02]}  c2 {[%clk 0:00:09]} 0-1


[Site "https://www.chess.com"]

[Event "Titled Tuesday Blitz February 07 Early 2023"]
[White "Sattarov, Bobir"]
[Black "Makarian, Rudik"]
[WhiteFideId "14203081"]
[BlackFideId "44105681"]
[WhiteElo "2366"]
[BlackElo "2545"]
[Result "1-0"]
[Round "04"]
[TimeControl "180+2"]
[Date "2023.02.07"]
[WhiteClock "0:00:11"]
[BlackClock "0:00:04"]

1. e4 {[%clk 0:03:00]}  c5 {[%clk 0:02:59]} 2. Nf3 {[%clk 0:02:58]}  e6 {[%clk 0:02:58]} 3. d4 {[%clk 0:02:58]}  cxd4 {[%clk 0:02:59]} 4. Nxd4 {[%clk 0:02:59]}  Nc6 {[%clk 0:03:00]} 5. Bf4 {[%clk 0:02:59]}  d6 {[%clk 0:02:59]} 6. Nxc6 {[%clk 0:02:59]}  bxc6 {[%clk 0:03:00]} 7. c4 {[%clk 0:02:59]}  e5 {[%clk 0:02:57]} 8. Be3 {[%clk 0:03:00]}  f5 {[%clk 0:02:57]} 9. exf5 {[%clk 0:02:56]}  Bxf5 {[%clk 0:02:54]} 10. Bd3 {[%clk 0:02:56]}  Qd7 {[%clk 0:02:51]} 11. O-O {[%clk 0:02:51]}  Nf6 {[%clk 0:02:51]} 12. Nc3 {[%clk 0:02:50]}  Be7 {[%clk 0:02:52]} 13. Bxf5 {[%clk 0:02:36]}  Qxf5 {[%clk 0:02:53]} 14. Qa4 {[%clk 0:02:36]}  Qd7 {[%clk 0:02:51]} 15. Rad1 {[%clk 0:02:25]}  O-O {[%clk 0:02:48]} 16. f3 {[%clk 0:02:20]}  Qb7 {[%clk 0:02:47]} 17. Rf2 {[%clk 0:02:06]}  Kh8 {[%clk 0:02:46]} 18. Rfd2 {[%clk 0:02:04]}  a5 {[%clk 0:02:41]} 19. b3 {[%clk 0:01:59]}  h6 {[%clk 0:02:36]} 20. Rd3 {[%clk 0:01:55]}  Rfd8 {[%clk 0:02:35]} 21. Kh1 {[%clk 0:01:54]}  d5 {[%clk 0:02:32]} 22. cxd5 {[%clk 0:01:52]}  cxd5 {[%clk 0:02:33]} 23. Bf2 {[%clk 0:01:42]}  Bb4 {[%clk 0:02:17]} 24. Bh4 {[%clk 0:01:32]}  d4 {[%clk 0:01:53]} 25. Bxf6 {[%clk 0:01:15]}  gxf6 {[%clk 0:01:54]} 26. Ne4 {[%clk 0:01:15]}  f5 {[%clk 0:01:23]} 27. Ng3 {[%clk 0:01:14]}  Rf8 {[%clk 0:01:22]} 28. f4 {[%clk 0:00:57]}  Rad8 {[%clk 0:01:10]} 29. fxe5 {[%clk 0:00:48]}  f4 {[%clk 0:01:11]} 30. Nh5 {[%clk 0:00:37]}  f3 {[%clk 0:01:05]} 31. Nf6 {[%clk 0:00:37]}  fxg2+ {[%clk 0:00:53]} 32. Kg1 {[%clk 0:00:37]}  Qb6 {[%clk 0:00:28]} 33. a3 {[%clk 0:00:32]}  Bc5 {[%clk 0:00:21]} 34. b4 {[%clk 0:00:32]}  axb4 {[%clk 0:00:20]} 35. axb4 {[%clk 0:00:33]}  Qxb4 {[%clk 0:00:15]} 36. Qc2 {[%clk 0:00:33]}  Be7 {[%clk 0:00:14]} 37. Qc1 {[%clk 0:00:32]}  Kg7 {[%clk 0:00:08]} 38. Rg3+ {[%clk 0:00:31]}  Kf7 {[%clk 0:00:09]} 39. Qxh6 {[%clk 0:00:30]}  Rh8 {[%clk 0:00:04]} 40. Qg6+ {[%clk 0:00:26]}  Ke6 {[%clk 0:00:04]} 41. Qg4+ {[%clk 0:00:12]}  Kf7 {[%clk 0:00:04]} 42. Qf5 {[%clk 0:00:11]} 1-0


[Site "https://www.chess.com"]

[Event "Titled Tuesday Blitz February 07 Early 2023"]
[White "Malek, Jan"]
[Black "Remizov, Yaroslav"]
[WhiteFideId "21864080"]
[BlackFideId "34134015"]
[WhiteElo "2370"]
[BlackElo "2421"]
[Result "1/2-1/2"]
[Round "04"]
[TimeControl "180+2"]
[Date "2023.02.07"]
[WhiteClock "0:00:06"]
[BlackClock "0:00:23"]

1. c4 {[%clk 0:03:00]}  Nf6 {[%clk 0:02:58]} 2. Nf3 {[%clk 0:02:59]}  e6 {[%clk 0:02:58]} 3. g3 {[%clk 0:02:59]}  d5 {[%clk 0:02:58]} 4. Bg2 {[%clk 0:02:59]}  dxc4 {[%clk 0:02:59]} 5. Qa4+ {[%clk 0:02:57]}  Nbd7 {[%clk 0:02:59]} 6. Qxc4 {[%clk 0:02:57]}  a6 {[%clk 0:03:00]} 7. Qc2 {[%clk 0:02:58]}  c5 {[%clk 0:02:54]} 8. O-O {[%clk 0:02:52]}  Be7 {[%clk 0:02:51]} 9. Nc3 {[%clk 0:02:51]}  O-O {[%clk 0:02:49]} 10. d4 {[%clk 0:02:51]}  Ra7 {[%clk 0:02:25]} 11. Rd1 {[%clk 0:02:51]}  b5 {[%clk 0:02:20]} 12. dxc5 {[%clk 0:02:29]}  Bxc5 {[%clk 0:02:19]} 13. Bg5 {[%clk 0:02:18]}  Qb6 {[%clk 0:02:15]} 14. e3 {[%clk 0:02:13]}  Bb7 {[%clk 0:02:07]} 15. a4 {[%clk 0:02:09]}  h6 {[%clk 0:01:46]} 16. Bxf6 {[%clk 0:01:52]}  Nxf6 {[%clk 0:01:46]} 17. axb5 {[%clk 0:01:52]}  axb5 {[%clk 0:01:46]} 18. Rxa7 {[%clk 0:01:53]}  Qxa7 {[%clk 0:01:46]} 19. Nxb5 {[%clk 0:01:53]}  Qb6 {[%clk 0:01:46]} 20. Nc3 {[%clk 0:01:53]}  Rc8 {[%clk 0:01:46]} 21. Na4 {[%clk 0:01:41]}  Qa5 {[%clk 0:01:29]} 22. Nxc5 {[%clk 0:01:39]}  Rxc5 {[%clk 0:01:24]} 23. b4 {[%clk 0:00:48]}  Rxc2 {[%clk 0:01:14]} 24. bxa5 {[%clk 0:00:49]}  Ra2 {[%clk 0:00:59]} 25. Ne5 {[%clk 0:00:34]}  Bxg2 {[%clk 0:00:59]} 26. Kxg2 {[%clk 0:00:34]}  Ne4 {[%clk 0:00:58]} 27. Kf3 {[%clk 0:00:21]}  f5 {[%clk 0:00:53]} 28. Nd3 {[%clk 0:00:14]}  Rxa5 {[%clk 0:00:50]} 29. Kg2 {[%clk 0:00:13]}  Ra2 {[%clk 0:00:50]} 30. Rf1 {[%clk 0:00:12]}  Kh7 {[%clk 0:00:47]} 31. Nf4 {[%clk 0:00:12]}  e5 {[%clk 0:00:44]} 32. Nd3 {[%clk 0:00:12]}  Ra5 {[%clk 0:00:44]} 33. Rc1 {[%clk 0:00:10]}  Nf6 {[%clk 0:00:43]} 34. Rc5 {[%clk 0:00:09]}  Rxc5 {[%clk 0:00:40]} 35. Nxc5 {[%clk 0:00:10]}  Kg6 {[%clk 0:00:40]} 36. Nd3 {[%clk 0:00:11]}  Nd7 {[%clk 0:00:40]} 37. f3 {[%clk 0:00:06]}  Kf6 {[%clk 0:00:40]} 38. e4 {[%clk 0:00:06]}  g6 {[%clk 0:00:41]} 39. Kf2 {[%clk 0:00:06]}  Ke6 {[%clk 0:00:40]} 40. Ke3 {[%clk 0:00:07]}  Nf6 {[%clk 0:00:39]} 41. Nc5+ {[%clk 0:00:07]}  Kd6 {[%clk 0:00:40]} 42. Nd3 {[%clk 0:00:07]}  Nd7 {[%clk 0:00:37]} 43. h4 {[%clk 0:00:07]}  Ke6 {[%clk 0:00:36]} 44. Ke2 {[%clk 0:00:05]}  Nf6 {[%clk 0:00:32]} 45. Ke3 {[%clk 0:00:06]}  Nh5 {[%clk 0:00:31]} 46. Kf2 {[%clk 0:00:05]}  Nf6 {[%clk 0:00:26]} 47. Ke3 {[%clk 0:00:05]}  Ne8 {[%clk 0:00:25]} 48. Nc5+ {[%clk 0:00:05]}  Kd6 {[%clk 0:00:25]} 49. Nd3 {[%clk 0:00:05]}  Nf6 {[%clk 0:00:24]} 50. Kf2 {[%clk 0:00:05]}  Nh5 {[%clk 0:00:23]} 51. exf5 {[%clk 0:00:02]}  gxf5 {[%clk 0:00:23]} 52. g4 {[%clk 0:00:03]}  fxg4 {[%clk 0:00:22]} 53. fxg4 {[%clk 0:00:04]}  Nf6 {[%clk 0:00:22]} 54. g5 {[%clk 0:00:04]}  hxg5 {[%clk 0:00:22]} 55. hxg5 {[%clk 0:00:05]}  Ne4+ {[%clk 0:00:23]} 56. Ke3 {[%clk 0:00:06]}  Nxg5 {[%clk 0:00:23]} 57. Nxe5 {[%clk 0:00:06]} 1/2-1/2


[Site "https://www.chess.com"]

[Event "Titled Tuesday Blitz February 07 Early 2023"]
[White "Bjerre, Jonas Buhl"]
[Black "Assaubayeva, Bibisara"]
[WhiteFideId "1444948"]
[BlackFideId "13708694"]
[WhiteElo "2602"]
[BlackElo "2464"]
[Result "0-1"]
[Round "04"]
[TimeControl "180+2"]
[Date "2023.02.07"]
[WhiteClock "0:00:13"]
[BlackClock "0:00:06"]

1. Nf3 {[%clk 0:03:00]}  Nf6 {[%clk 0:02:52]} 2. c4 {[%clk 0:03:00]}  e6 {[%clk 0:02:52]} 3. g3 {[%clk 0:03:00]}  d5 {[%clk 0:02:50]} 4. d4 {[%clk 0:03:00]}  Bb4+ {[%clk 0:02:41]} 5. Bd2 {[%clk 0:02:59]}  Be7 {[%clk 0:02:40]} 6. Bg2 {[%clk 0:02:59]}  O-O {[%clk 0:02:41]} 7. O-O {[%clk 0:02:59]}  b6 {[%clk 0:02:37]} 8. Nc3 {[%clk 0:02:56]}  Bb7 {[%clk 0:02:36]} 9. cxd5 {[%clk 0:02:53]}  exd5 {[%clk 0:02:37]} 10. Ne5 {[%clk 0:02:51]}  Nbd7 {[%clk 0:02:36]} 11. Bf4 {[%clk 0:02:49]}  a6 {[%clk 0:02:34]} 12. Rc1 {[%clk 0:02:46]}  c5 {[%clk 0:02:29]} 13. dxc5 {[%clk 0:02:33]}  Nxc5 {[%clk 0:02:29]} 14. Bg5 {[%clk 0:02:06]}  Nfe4 {[%clk 0:02:18]} 15. Bxe7 {[%clk 0:02:05]}  Qxe7 {[%clk 0:02:18]} 16. Nf3 {[%clk 0:02:01]}  Rfd8 {[%clk 0:02:12]} 17. Nd4 {[%clk 0:02:01]}  Rac8 {[%clk 0:02:10]} 18. e3 {[%clk 0:01:53]}  h6 {[%clk 0:02:01]} 19. Rc2 {[%clk 0:01:48]}  Qf6 {[%clk 0:01:39]} 20. Qg4 {[%clk 0:01:44]}  Qe5 {[%clk 0:01:04]} 21. Nxe4 {[%clk 0:01:31]}  dxe4 {[%clk 0:00:54]} 22. Rfc1 {[%clk 0:01:31]}  h5 {[%clk 0:00:52]} 23. Qf5 {[%clk 0:01:27]}  Qxf5 {[%clk 0:00:43]} 24. Nxf5 {[%clk 0:01:28]}  Kf8 {[%clk 0:00:43]} 25. a3 {[%clk 0:01:06]}  Nd3 {[%clk 0:00:38]} 26. Rxc8 {[%clk 0:00:56]}  Bxc8 {[%clk 0:00:39]} 27. Rc6 {[%clk 0:00:48]}  Bxf5 {[%clk 0:00:39]} 28. Rxb6 {[%clk 0:00:48]}  Nxb2 {[%clk 0:00:36]} 29. h3 {[%clk 0:00:43]}  Rd1+ {[%clk 0:00:34]} 30. Kh2 {[%clk 0:00:43]}  Nd3 {[%clk 0:00:34]} 31. g4 {[%clk 0:00:41]}  hxg4 {[%clk 0:00:32]} 32. hxg4 {[%clk 0:00:41]}  Bxg4 {[%clk 0:00:31]} 33. Rxa6 {[%clk 0:00:42]}  Nxf2 {[%clk 0:00:22]} 34. Kg3 {[%clk 0:00:42]}  Rd2 {[%clk 0:00:23]} 35. Ra8+ {[%clk 0:00:41]}  Ke7 {[%clk 0:00:22]} 36. a4 {[%clk 0:00:42]}  Bd7 {[%clk 0:00:20]} 37. a5 {[%clk 0:00:41]}  f5 {[%clk 0:00:19]} 38. a6 {[%clk 0:00:37]}  Ra2 {[%clk 0:00:19]} 39. Bf1 {[%clk 0:00:34]}  Nd1 {[%clk 0:00:19]} 40. Kf4 {[%clk 0:00:22]}  Rf2+ {[%clk 0:00:17]} 41. Ke5 {[%clk 0:00:20]}  Nxe3 {[%clk 0:00:15]} 42. a7 {[%clk 0:00:18]}  Ra2 {[%clk 0:00:14]} 43. Bh3 {[%clk 0:00:17]}  Ra5+ {[%clk 0:00:13]} 44. Kd4 {[%clk 0:00:17]}  Ng4 {[%clk 0:00:12]} 45. Bxg4 {[%clk 0:00:17]}  fxg4 {[%clk 0:00:12]} 46. Ke3 {[%clk 0:00:18]}  g3 {[%clk 0:00:12]} 47. Rg8 {[%clk 0:00:16]}  Rxa7 {[%clk 0:00:12]} 48. Rxg7+ {[%clk 0:00:16]}  Kf6 {[%clk 0:00:10]} 49. Rh7 {[%clk 0:00:15]}  Ra3+ {[%clk 0:00:09]} 50. Kf4 {[%clk 0:00:15]}  Bf5 {[%clk 0:00:07]} 51. Rh1 {[%clk 0:00:13]}  Rf3# {[%clk 0:00:06]} 0-1


[Site "https://www.chess.com"]

[Event "Titled Tuesday Blitz February 07 Early 2023"]
[White "Ozen, Bahadir"]
[Black "Alex_Sahakyan2006"]
[WhiteFideId "6337058"]
[WhiteElo "2369"]
[BlackElo "2712"]
[Result "1-0"]
[Round "04"]
[TimeControl "180+2"]
[Date "2023.02.07"]
[WhiteClock "0:00:14"]
[BlackClock "0:00:02"]

1. g3 {[%clk 0:03:00]}  d5 {[%clk 0:02:57]} 2. Nf3 {[%clk 0:03:00]}  Bg4 {[%clk 0:02:55]} 3. Bg2 {[%clk 0:03:00]}  Nd7 {[%clk 0:02:55]} 4. h3 {[%clk 0:03:01]}  Bxf3 {[%clk 0:02:54]} 5. Bxf3 {[%clk 0:03:01]}  c6 {[%clk 0:02:55]} 6. d3 {[%clk 0:03:01]}  Ngf6 {[%clk 0:02:54]} 7. O-O {[%clk 0:02:57]}  e6 {[%clk 0:02:52]} 8. e4 {[%clk 0:02:51]}  dxe4 {[%clk 0:02:48]} 9. dxe4 {[%clk 0:02:51]}  Ne5 {[%clk 0:02:48]} 10. Bg2 {[%clk 0:02:49]}  Bc5 {[%clk 0:02:44]} 11. Qe2 {[%clk 0:02:45]}  h5 {[%clk 0:02:41]} 12. Kh1 {[%clk 0:02:30]}  h4 {[%clk 0:02:14]} 13. g4 {[%clk 0:02:16]}  Nfxg4 {[%clk 0:02:11]} 14. hxg4 {[%clk 0:02:17]}  h3 {[%clk 0:02:12]} 15. Bf3 {[%clk 0:02:18]}  Qf6 {[%clk 0:02:12]} 16. Nd2 {[%clk 0:02:12]}  O-O-O {[%clk 0:02:05]} 17. Rg1 {[%clk 0:01:43]}  Rxd2 {[%clk 0:02:01]} 18. Bxd2 {[%clk 0:01:44]}  Qxf3+ {[%clk 0:01:46]} 19. Qxf3 {[%clk 0:01:44]}  Nxf3 {[%clk 0:01:47]} 20. Rgd1 {[%clk 0:01:34]}  Rh4 {[%clk 0:01:37]} 21. Bc3 {[%clk 0:01:25]}  Rxg4 {[%clk 0:01:17]} 22. Rd3 {[%clk 0:01:26]}  Ng5 {[%clk 0:01:16]} 23. f3 {[%clk 0:01:14]}  Rg2 {[%clk 0:00:54]} 24. Rad1 {[%clk 0:01:14]}  Bb6 {[%clk 0:00:27]} 25. Be5 {[%clk 0:00:43]}  Rxc2 {[%clk 0:00:14]} 26. Bf4 {[%clk 0:00:40]}  f6 {[%clk 0:00:10]} 27. Bxg5 {[%clk 0:00:32]}  fxg5 {[%clk 0:00:11]} 28. R3d2 {[%clk 0:00:33]}  Rxd2 {[%clk 0:00:05]} 29. Rxd2 {[%clk 0:00:34]}  Bc7 {[%clk 0:00:06]} 30. e5 {[%clk 0:00:13]}  Bxe5 {[%clk 0:00:05]} 31. Re2 {[%clk 0:00:14]}  Bxb2 {[%clk 0:00:03]} 32. Rxb2 {[%clk 0:00:13]}  Kd7 {[%clk 0:00:02]} 33. Kh2 {[%clk 0:00:14]} 1-0


[Site "https://www.chess.com"]

[Event "Titled Tuesday Blitz February 07 Early 2023"]
[White "Jaskolka, Tomasz"]
[Black "Kaasen, Tor Fredrik"]
[WhiteFideId "1170791"]
[BlackFideId "1516647"]
[WhiteElo "2238"]
[BlackElo "2480"]
[Result "0-1"]
[Round "04"]
[TimeControl "180+2"]
[Date "2023.02.07"]
[WhiteClock "0:00:50"]
[BlackClock "0:00:41"]

1. d4 {[%clk 0:03:00]}  Nf6 {[%clk 0:02:58]} 2. Bf4 {[%clk 0:03:00]}  g6 {[%clk 0:02:58]} 3. Nc3 {[%clk 0:03:00]}  d5 {[%clk 0:02:58]} 4. e3 {[%clk 0:03:00]}  Bg7 {[%clk 0:02:58]} 5. h4 {[%clk 0:03:01]}  c6 {[%clk 0:02:58]} 6. Nf3 {[%clk 0:02:58]}  Bg4 {[%clk 0:02:57]} 7. Be2 {[%clk 0:02:57]}  Qb6 {[%clk 0:02:58]} 8. Rb1 {[%clk 0:02:56]}  Nbd7 {[%clk 0:02:54]} 9. Ne5 {[%clk 0:02:57]}  Bxe2 {[%clk 0:02:54]} 10. Qxe2 {[%clk 0:02:57]}  h5 {[%clk 0:02:48]} 11. Nd3 {[%clk 0:02:46]}  O-O {[%clk 0:02:47]} 12. O-O {[%clk 0:02:43]}  Rfe8 {[%clk 0:02:47]} 13. a4 {[%clk 0:02:30]}  a5 {[%clk 0:02:46]} 14. Ne5 {[%clk 0:02:24]}  Nxe5 {[%clk 0:02:45]} 15. Bxe5 {[%clk 0:02:24]}  Ng4 {[%clk 0:02:42]} 16. Bxg7 {[%clk 0:02:21]}  Kxg7 {[%clk 0:02:43]} 17. Qd3 {[%clk 0:01:38]}  e5 {[%clk 0:02:21]} 18. f3 {[%clk 0:01:25]}  exd4 {[%clk 0:01:56]} 19. fxg4 {[%clk 0:01:06]}  Rxe3 {[%clk 0:01:49]} 20. Qd2 {[%clk 0:01:06]}  dxc3 {[%clk 0:01:46]} 21. Qf2 {[%clk 0:01:06]}  Rf8 {[%clk 0:01:00]} 22. bxc3 {[%clk 0:01:01]}  Qc5 {[%clk 0:00:55]} 23. Rbe1 {[%clk 0:00:59]}  Rxc3 {[%clk 0:00:53]} 24. Qxc5 {[%clk 0:00:55]}  Rxc5 {[%clk 0:00:54]} 25. Re7 {[%clk 0:00:55]}  hxg4 {[%clk 0:00:52]} 26. Rxb7 {[%clk 0:00:55]}  Rxc2 {[%clk 0:00:52]} 27. Rf4 {[%clk 0:00:53]}  g3 {[%clk 0:00:47]} 28. Kf1 {[%clk 0:00:52]}  c5 {[%clk 0:00:45]} 29. Rb5 {[%clk 0:00:52]}  Re8 {[%clk 0:00:41]} 30. Rb7 {[%clk 0:00:50]}  Rc1# {[%clk 0:00:41]} 0-1


[Site "https://www.chess.com"]

[Event "Titled Tuesday Blitz February 07 Early 2023"]
[White "Perez Ponsa, Federico"]
[Black "Ladan, Nicholas"]
[WhiteFideId "117927"]
[BlackFideId "30918855"]
[WhiteElo "2532"]
[BlackElo "2228"]
[Result "1-0"]
[Round "04"]
[TimeControl "180+2"]
[Date "2023.02.07"]
[WhiteClock "0:00:06"]
[BlackClock "0:00:06"]

1. e4 {[%clk 0:03:00]}  e5 {[%clk 0:02:59]} 2. Nf3 {[%clk 0:03:01]}  Nc6 {[%clk 0:02:59]} 3. d4 {[%clk 0:03:00]}  exd4 {[%clk 0:02:59]} 4. Nxd4 {[%clk 0:03:01]}  Bc5 {[%clk 0:02:59]} 5. Nb3 {[%clk 0:03:01]}  Bb6 {[%clk 0:02:59]} 6. Qe2 {[%clk 0:03:01]}  Nge7 {[%clk 0:02:50]} 7. Nc3 {[%clk 0:02:59]}  O-O {[%clk 0:02:48]} 8. Be3 {[%clk 0:02:59]}  f5 {[%clk 0:02:48]} 9. O-O-O {[%clk 0:02:59]}  f4 {[%clk 0:02:47]} 10. Bxb6 {[%clk 0:02:57]}  axb6 {[%clk 0:02:48]} 11. Kb1 {[%clk 0:02:53]}  d6 {[%clk 0:02:48]} 12. h4 {[%clk 0:02:52]}  Qe8 {[%clk 0:02:43]} 13. h5 {[%clk 0:02:50]}  Be6 {[%clk 0:02:40]} 14. h6 {[%clk 0:02:49]}  g5 {[%clk 0:02:31]} 15. Nb5 {[%clk 0:02:29]}  Rc8 {[%clk 0:01:45]} 16. N3d4 {[%clk 0:02:10]}  Ng6 {[%clk 0:01:33]} 17. Qh5 {[%clk 0:01:54]}  Qe7 {[%clk 0:00:34]} 18. Nxe6 {[%clk 0:01:48]}  Qxe6 {[%clk 0:00:35]} 19. Qxg5 {[%clk 0:01:49]}  Qxe4 {[%clk 0:00:28]} 20. Bd3 {[%clk 0:01:34]}  Qe5 {[%clk 0:00:25]} 21. Qg4 {[%clk 0:01:34]}  Ne7 {[%clk 0:00:20]} 22. Rhe1 {[%clk 0:01:28]}  Qf6 {[%clk 0:00:20]} 23. Re6 {[%clk 0:01:05]}  Qf7 {[%clk 0:00:20]} 24. Rde1 {[%clk 0:01:05]}  Rfe8 {[%clk 0:00:17]} 25. Bxg6 {[%clk 0:00:43]}  Nxg6 {[%clk 0:00:16]} 26. Nxc7 {[%clk 0:00:36]}  Rxe6 {[%clk 0:00:13]} 27. Nxe6 {[%clk 0:00:36]}  Re8 {[%clk 0:00:06]} 28. Re2 {[%clk 0:00:36]}  Qf6 {[%clk 0:00:06]} 29. Nc7 {[%clk 0:00:11]}  Rxe2 {[%clk 0:00:04]} 30. Qxe2 {[%clk 0:00:12]}  Qe5 {[%clk 0:00:05]} 31. Qxe5 {[%clk 0:00:08]}  dxe5 {[%clk 0:00:05]} 32. Kc1 {[%clk 0:00:05]}  Nh4 {[%clk 0:00:06]} 33. g3 {[%clk 0:00:05]}  Nf5 {[%clk 0:00:06]} 34. gxf4 {[%clk 0:00:04]}  exf4 {[%clk 0:00:07]} 35. Nd5 {[%clk 0:00:05]}  f3 {[%clk 0:00:07]} 36. Nxb6 {[%clk 0:00:04]}  Nxh6 {[%clk 0:00:08]} 37. Kd2 {[%clk 0:00:04]}  Ng4 {[%clk 0:00:08]} 38. Ke1 {[%clk 0:00:05]}  h5 {[%clk 0:00:09]} 39. Nd5 {[%clk 0:00:05]}  h4 {[%clk 0:00:09]} 40. Nf4 {[%clk 0:00:05]}  Kf7 {[%clk 0:00:08]} 41. Nh3 {[%clk 0:00:05]}  Ke6 {[%clk 0:00:08]} 42. Ng1 {[%clk 0:00:06]}  Ne5 {[%clk 0:00:09]} 43. Kd2 {[%clk 0:00:05]}  Kf5 {[%clk 0:00:09]} 44. Ke3 {[%clk 0:00:05]}  Kg4 {[%clk 0:00:10]} 45. Ke4 {[%clk 0:00:04]}  Nc4 {[%clk 0:00:05]} 46. b3 {[%clk 0:00:02]}  Nd2+ {[%clk 0:00:04]} 47. Ke3 {[%clk 0:00:03]}  Nf1+ {[%clk 0:00:05]} 48. Ke4 {[%clk 0:00:03]}  h3 {[%clk 0:00:03]} 49. Nxf3 {[%clk 0:00:03]}  Nd2+ {[%clk 0:00:03]} 50. Nxd2 {[%clk 0:00:02]}  h2 {[%clk 0:00:04]} 51. f3+ {[%clk 0:00:02]}  Kg3 {[%clk 0:00:04]} 52. Nf1+ {[%clk 0:00:02]}  Kg2 {[%clk 0:00:05]} 53. Nxh2 {[%clk 0:00:03]}  Kxh2 {[%clk 0:00:05]} 54. f4 {[%clk 0:00:04]}  Kg3 {[%clk 0:00:06]} 55. f5 {[%clk 0:00:05]}  Kg4 {[%clk 0:00:06]} 56. f6 {[%clk 0:00:06]} 1-0


[Site "https://www.chess.com"]

[Event "Titled Tuesday Blitz February 07 Early 2023"]
[White "Nouri, Alekhine"]
[Black "Daneshvar, Bardiya"]
[WhiteFideId "5216184"]
[BlackFideId "12576468"]
[WhiteElo "2257"]
[BlackElo "2540"]
[Result "0-1"]
[Round "04"]
[TimeControl "180+2"]
[Date "2023.02.07"]
[WhiteClock "0:00:19"]
[BlackClock "0:01:25"]

1. e4 {[%clk 0:03:00]}  Nf6 {[%clk 0:02:58]} 2. e5 {[%clk 0:03:00]}  Nd5 {[%clk 0:02:58]} 3. Nf3 {[%clk 0:03:00]}  d6 {[%clk 0:02:58]} 4. d4 {[%clk 0:03:01]}  g6 {[%clk 0:02:58]} 5. c4 {[%clk 0:02:59]}  Nb6 {[%clk 0:02:58]} 6. Nc3 {[%clk 0:02:58]}  Bg7 {[%clk 0:02:58]} 7. Be2 {[%clk 0:02:56]}  dxe5 {[%clk 0:02:58]} 8. Nxe5 {[%clk 0:02:49]}  c5 {[%clk 0:02:51]} 9. Be3 {[%clk 0:02:49]}  cxd4 {[%clk 0:02:47]} 10. Qxd4 {[%clk 0:02:47]}  N6d7 {[%clk 0:02:38]} 11. Bf4 {[%clk 0:02:15]}  Nxe5 {[%clk 0:02:09]} 12. Qxd8+ {[%clk 0:01:48]}  Kxd8 {[%clk 0:02:10]} 13. O-O-O+ {[%clk 0:01:48]}  Bd7 {[%clk 0:02:09]} 14. Rd5 {[%clk 0:01:45]}  Nbc6 {[%clk 0:02:08]} 15. Rhd1 {[%clk 0:01:45]}  Kc8 {[%clk 0:02:01]} 16. Bxe5 {[%clk 0:01:39]}  Nxe5 {[%clk 0:02:01]} 17. f4 {[%clk 0:01:38]}  Bc6 {[%clk 0:02:00]} 18. fxe5 {[%clk 0:01:38]}  Bxd5 {[%clk 0:01:59]} 19. Nxd5 {[%clk 0:01:37]}  e6 {[%clk 0:01:58]} 20. Nf6 {[%clk 0:01:22]}  Bxf6 {[%clk 0:01:56]} 21. exf6 {[%clk 0:01:23]}  Rd8 {[%clk 0:01:57]} 22. Re1 {[%clk 0:01:20]}  Rd4 {[%clk 0:01:56]} 23. Rf1 {[%clk 0:01:14]}  Kc7 {[%clk 0:01:54]} 24. b3 {[%clk 0:01:10]}  Rad8 {[%clk 0:01:55]} 25. Bf3 {[%clk 0:01:10]}  Rd2 {[%clk 0:01:54]} 26. Kb1 {[%clk 0:01:09]}  R8d3 {[%clk 0:01:54]} 27. Re1 {[%clk 0:01:07]}  Rc3 {[%clk 0:01:53]} 28. h4 {[%clk 0:00:46]}  Rcc2 {[%clk 0:01:52]} 29. Rxe6 {[%clk 0:00:38]}  fxe6 {[%clk 0:01:40]} 30. f7 {[%clk 0:00:38]}  Rb2+ {[%clk 0:01:40]} 31. Kc1 {[%clk 0:00:38]}  Rdc2+ {[%clk 0:01:30]} 32. Kd1 {[%clk 0:00:38]}  Rxg2 {[%clk 0:01:25]} 33. Kc1 {[%clk 0:00:19]}  Rgc2+ {[%clk 0:01:24]} 34. Kd1 {[%clk 0:00:19]}  Rf2 {[%clk 0:01:25]} 35. Kc1 {[%clk 0:00:19]}  Rxf3 {[%clk 0:01:25]} 0-1


[Site "https://www.chess.com"]